Cogmind - Beta 17.1 @@@ ROGUE MODE // 2026.09.18 @ 19:13:49 Player: Maynard Result: Destroyed by YI-UF0 with YI-UF0's Doublenader Performance ------------- Evolutions (0) 0 Regions Visited (2) 400 Robots Destroyed (7) 35 Value Destroyed (108) 108 Prototype IDs (0) 0 Alien Tech Used (0) 0 Bonus (0) 0 TOTAL SCORE: 543 Bonus ------- None Cogmind --------- Core Integrity 0/250 Matter 199/300 Energy 79/100 System Corruption 0% Temperature Cool (0) Movement Core (200) Ox3 Location -10/Mines Parts ------- > --- POWER (1) -------- (None) > --- PROPULSION (2) --- (None) > --- UTILITY (2) ------ Medium Storage Unit > --- WEAPON (2) ------- Backup Laser I > --- INVENTORY (10) --- Light Ion Engine Light Treads Light Treads Small Storage Unit Large Storage Unit Assault Rifle Assault Rifle Grenade Launcher Peak State ------------ > --- POWER ------------ Ion Engine > --- PROPULSION ------- Aluminum Leg Aluminum Leg > --- UTILITY ---------- Medium Storage Unit Backup Plating I > --- WEAPON ----------- Assault Rifle Grenade Launcher > --- INVENTORY -------- Light Ion Engine Light Treads Light Treads Small Storage Unit Large Storage Unit Backup Laser I Assault Rifle Assault Rifle [Rating: 7] Favorites ----------- Power Ion Engine Engine Ion Engine Propulsion Aluminum Leg Leg Aluminum Leg Utility Medium Storage Unit Storage Medium Storage Unit Protection Backup Plating I Weapon Assault Rifle Energy Gun Backup Laser I Ballistic Gun Assault Rifle Launcher Grenade Launcher Build | -11 -10 -10 ------- Run | Yrd Mat Min Slots Evolved . | . . . Power . | . . . Propulsion . | . . . Utility . | . . . Weapon . | . . . Parts Attached 10 | 6 3 1 Power 1 | 1 . . Engine 1 | 1 . . Core . | . . . Reactor . | . . . Propulsion 2 | 2 . . Treads . | . . . Leg 2 | 2 . . Wheel . | . . . Hover . | . . . Flight . | . . . Utility 3 | 1 2 . Device . | . . . Storage 2 | 1 1 . Processor . | . . . Hackware . | . . . Protection 1 | . 1 . Artifact . | . . . Weapon 4 | 2 1 1 Energy Gun 1 | . . 1 Energy Cannon . | . . . Ballistic Gun 2 | 2 . . Ballistic Cannon . | . . . Launcher 1 | . 1 . Special Weapon . | . . . Impact Weapon . | . . . Slashing Weapon . | . . . Piercing Weapon . | . . . Special Melee Weapon . | . . . Unidentified Prototypes . | . . . Parts Lost 6 | . . 6 Power 1 | . . 1 Propulsion 2 | . . 2 Utility 1 | . . 1 Weapon 2 | . . 2 Highest Loss Streak 6 | . . 6 To Critical Strikes . | . . . Average Backups 7 | 2 7 8 Power . | . 1 1 Propulsion 1 | 1 2 2 Utility 1 | . 1 2 Weapon 2 | . 2 3 Tool/Special . | . . . Unused Backups 6 | . . 6 Power 1 | . . 1 Propulsion 2 | . . 2 Utility 1 | . . 1 Weapon 2 | . . 2 Tool/Special . | . . . Average Slot Usage (%) 95 | . 94 96 Engine 13 | . 14 13 Leg 27 | . 28 26 Storage 14 | . 14 14 Protection 11 | . 9 13 Ballistic Gun 15 | . 16 13 Launcher 12 | . 11 13 Peak Build Rating 7 | 6 7 7 Average Rating 6 | 5 6 6 On Entrance 4 | . 6 7 Avg Prop Armor Cover (%) . | . . . Naked Turns . | . . . Heaviest Build 21 | 14 21 21 Greatest Support 20 | 20 20 20 Greatest Overweight (x) 1 | . 1 1 Average Overweight (x) . | . . 1 Largest Inventory Capacity 10 | 8 10 10 Average Capacity 9 | 7 9 10 Most Carried 9 | 4 9 9 Average Carried 7 | 2 7 8 Final Capacity 10 | 8 10 10 Final Carried 8 | 4 8 8 Class Distribution -------------------- 100% | Mutant Dominant Class ---------------- Mutant | -10/Materials Mutant | -10/Mines Resources | -11 -10 -10 ----------- Run | Yrd Mat Min Matter Collected 312 | 229 . 83 Remotely . | . . . Salvage Created 103 | 68 21 14 Parts 9 | 2 3 4 Haulers Intercepted . | . . . Recyclers Shooed . | . . . Parts Field Recycled . | . . . Retrieved Matter . | . . . Parts Self-Destructed . | . . . Prevented . | . . . Parts Restored . | . . . Kills | -11 -10 -10 ------- Run | Yrd Mat Min Combat Hostiles Destroyed 4 | . . 4 AOE 4 | . . 4 Classes Destroyed 3 | 1 1 1 Recycler 1 | 1 . . Watcher 2 | . 2 . Swarmer 4 | . . 4 Best Kill Streak 3 | 1 1 3 Combat Bots Only 3 | . . 3 Max Kills in Single Turn 2 | 1 1 2 Gunslinging . | . . . Exploded 2 | . . 2 Melee . | . . . Uniques/NPCs Destroyed . | . . . Combat | -11 -10 -10 -------- Run | Yrd Mat Min Hostile Shots Fired 32 | . 16 16 Missed 9 | . 5 4 Hits 23 | . 11 12 Projectile 23 | . 11 12 AOE 16 | . . 16 Critical Strikes 1 | . 1 . Damage Taken 790 | . 149 641 Core 254 | . 55 199 Absorbed by Shields . | . . . Core Remaining (%) 100 | 100 . . Volleys Fired 23 | 10 4 9 Largest 1 | 1 1 1 Hottest 30 | 20 30 30 Shots Fired 23 | 10 4 9 Gun 12 | 10 1 1 Cannon . | . . . Launcher 11 | . 3 8 Special . | . . . Kinetic 11 | 10 1 . Thermal 1 | . . 1 Explosive 11 | . 3 8 Electromagnetic . | . . . Robot Hit Streak 11 | 3 2 11 Robot Miss Streak 3 | 3 1 . Penetration Max . | . . . Secondary Targets . | . . . Shots Hit Robots 17 | 6 2 9 Core Hits 13 | 2 1 10 Critical Kills . | . . . Critical Parts Destroyed . | . . . Critical Strikes . | . . . Melee Attacks . | . . . Impact . | . . . Slashing . | . . . Piercing . | . . . Sneak Attacks . | . . . Combat Hostiles . | . . . Follow-up Attacks . | . . . Damage Inflicted 472 | 70 102 300 Guns 95 | 70 15 10 Cannons . | . . . Explosions 377 | . 87 290 Melee . | . . . Ramming . | . . . Kinetic 85 | 70 15 . Thermal 10 | . . 10 Explosive 377 | . 87 290 Electromagnetic . | . . . Impact . | . . . Slashing . | . . . Piercing . | . . . Highest Corruption . | . . . Average Corruption . | . . . Corruption Purged . | . . . Corruption Blocked . | . . . Overload Shots . | . . . Overflow Damage 20 | . 12 8 Projectiles . | . . . Explosions 20 | . 12 8 Melee . | . . . Knockbacks . | . . . Impact . | . . . Kinetic . | . . . Secondary . | . . . Self-Inflicted Damage 158 | . 32 126 Shots 8 | . 2 6 Rammed . | . . . Targets Rammed . | . . . Kicked . | . . . Crushed . | . . . Highest Temperature 8 | . 8 . Average Temperature 8 | . 8 . Received Heat Transfer 45 | . 45 . Siege Activations . | . . . Martial Activations . | . . . Shielding Activations . | . . . Robots Disrupted . | . . . Combat Hostiles . | . . . Robots Corrupted . | . . . Combat Hostiles . | . . . Parts Fried . | . . . Impact Corruptions . | . . . Robots Melted . | . . . Combat Hostiles . | . . . Parts Melted . | . . . Heat Transferred 37 | . . 37 Parts Sabotaged . | . . . Parts Stolen . | . . . Parts Stripped . | . . . Power Chain Reactions . | . . . Alert | -11 -10 -10 ------- Run | Yrd Mat Min Maximum Alert Level . | . . . Low Security (%) 100 | 100 100 100 Level 1 . | . . . Level 2 . | . . . Level 3 . | . . . Level 4 . | . . . Level 5 . | . . . High Security . | . . . Max Security . | . . . Peak Influence 91 | 5 58 91 Initial 5 | . . 5 Average 25 | . 21 41 Influence Increases 223 | 5 108 110 Destroy 0b10 Robot/C 80 | . . 80 Destroy 0b10 Robot/NC 15 | 5 10 . Destroy Leader 14 | . 4 10 Successful Hack 5 | . 5 . Disable Machine 45 | . 45 . Destroy Structure 49 | . 29 20 Lose Combat Pursuer 15 | . 15 . Influence Decreases 223 | 5 93 125 Entered New Map 10 | . . 10 Time Decay 189 | 5 93 91 Lost Part 24 | . . 24 Squads Dispatched . | . . . Investigation . | . . . Extermination . | . . . Reinforcement . | . . . Assault . | . . . Garrison . | . . . Intercept . | . . . Searches Triggered . | . . . Construction Impeded . | . . . Haulers Reinforced . | . . . Active Scanning Responses . | . . . Cargo Convoy Interrupts . | . . . Stealth | -11 -10 -10 --------- Run | Yrd Mat Min Distress Signals . | . . . Communications Jammed . | . . . Distress Signals . | . . . Times Spotted 11 | . 8 3 Peak Tracking Total 5 | . 5 2 Tactical Retreats 1 | . 1 . Traps | -11 -10 -10 ------- Run | Yrd Mat Min Traps Triggered . | . . . Indirectly . | . . . Trap Hack Attempts . | . . . Triggered . | . . . Disarmed . | . . . Reprogrammed . | . . . Reused . | . . . Traps Extracted . | . . . Installed . | . . . Triggered . | . . . Machines | -11 -10 -10 ---------- Run | Yrd Mat Min Machines Disabled 3 | . 3 . Max in Single Turn 2 | . 2 . Machines Repaired . | . . . Machines Dismantled . | . . . Machines Sabotaged . | . . . Overloaded Fab Kills . | . . . Hacking | -11 -10 -10 --------- Run | Yrd Mat Min Machines Accessed 2 | . 2 . Terminals 2 | . 2 . Fabricators . | . . . Repair Stations . | . . . Recycling Units . | . . . Scanalyzers . | . . . Garrison Access . | . . . Total Hacks 4 | . 4 . Successful 1 | . 1 . Failed 3 | . 3 . Catastrophic . | . . . Database Lockouts . | . . . Manual . | . . . Terminals 4 | . 4 . Fabricators . | . . . Repair Stations . | . . . Recycling Units . | . . . Scanalyzers . | . . . Garrison Access . | . . . Terminal Hacks 1 | . 1 . Zone Layout 1 | . 1 . Fabricator Hacks . | . . . Repair Station Hacks . | . . . Recycling Unit Hacks . | . . . Scanalyzer . | . . . Garrison Access Hacks . | . . . Unauthorized Hacks . | . . . Terminals . | . . . Fabricators . | . . . Repair Stations . | . . . Recycling Units . | . . . Scanalyzers . | . . . Garrison Access . | . . . Data Cores Recovered . | . . . Used . | . . . Hacking Detections 1 | . 1 . Full Trace Events . | . . . Feedback Events . | . . . Feedback Blocked . | . . . Robot Schematics Acquired . | . . . Robots Built . | . . . Authchips . | . . . Time . | . . . Total Robot Build Rating . | . . . Part Schematics Acquired . | . . . Parts Built . | . . . Authchips . | . . . Time . | . . . Total Part Build Rating . | . . . Part Studies Acquired . | . . . Parts Repaired . | . . . Time . | . . . Parts Recycled . | . . . Recycled Matter . | . . . Retrieved Matter . | . . . Retrieved Components . | . . . Parts Scanalyzed . | . . . Part Schematics Acquired . | . . . Parts Damaged . | . . . Bothacking | -11 -10 -10 ------------ Run | Yrd Mat Min Used RIF Installer . | . . . Robots Hacked . | . . . Non-combat . | . . . Combat . | . . . Robot Hacks Applied . | . . . Relay Couplers Released . | . . . Fabnet Peak Effective % . | . . . Robots Rewired . | . . . Allies Hacked . | . . . Hacks Repelled . | . . . Allies | -11 -10 -10 -------- Run | Yrd Mat Min Total Allies . | . . . Largest Group . | . . . Highest-Rated Group . | . . . Highest-Rated Ally . | . . . Total Orders . | . . . Ally Attacks . | . . . Total Damage . | . . . Kills . | . . . Allies Corrupted . | . . . Allies Melted . | . . . Intel | -11 -10 -10 ------- Run | Yrd Mat Min Active Infowar (turns) . | . . . Robot Analysis Total . | . . . Derelict Logs Recovered 1 | . . 1 Drone Launches . | . . . Drone Recoveries . | . . . Exploration | -11 -10 -10 ------------- Run | Yrd Mat Min Turns Passed 589 | 92 279 218 Spaces Moved 322 | 54 163 105 Core 12 | 12 . . Treads . | . . . Legs 310 | 42 163 105 Wheels . | . . . Hover . | . . . Flight . | . . . Fastest Speed 50 | 50 120 190 Average Speed 161 | 104 161 190 Slowest Speed 190 | 120 190 190 Overloaded Moves . | . . . Propulsion Burnouts . | . . . Robots Hopped . | . . . Potential Cave-ins . | . . . Cave-ins Triggered . | . . . Exploration Rate (%) 20 | 4 31 26 Regions Visited 2 Branch Regions 1 Pre-discovered Areas 1 | . . 1 Known Exits Taken . | . . . Unknown Exits Taken 2 | 1 1 . Scrap Searched 1 | . . 1 Spaces Dug . | . . . Terrain Destroyed 56 | . 30 26 Melee . | . . . Projectile . | . . . AOE 56 | . 30 26 Terrain Rammed . | . . . Walls Destroyed . | . . . Machines Disabled . | . . . Actions | -11 -10 -10 --------- Run | Yrd Mat Min Total 369 | 79 174 116 Wait . | . . . Move 320 | 53 162 105 Hop . | . . . Pick Up 16 | 10 5 1 Fast Attach . | . . . Attach 8 | 6 1 1 Detach . | . . . Swap 2 | . 2 . Drop . | . . . Fire 23 | 10 4 9 Melee . | . . . Ram . | . . . Kick . | . . . Crush . | . . . Escape Stasis . | . . . Rewire . | . . . Trap . | . . . Miscellaneous . | . . . Route ------- -11/Scrapyard -10/Materials -10/Mines (discovered 1 exit: [*Mat]) History --------- Turn | Location | Event 8 | -11/Scrapyard | Discovered new exit (range 15) 93 | -11/Scrapyard | Entered Materials 226 | -10/Materials | Discovered new exit (range 5) 303 | -10/Materials | Build established: Mutant 372 | -10/Materials | Entered Mines 397 | -10/Mines | Learned location of Recycling (-7) 405 | -10/Mines | Discovered new exit (range 12) 423 | -10/Mines | YI-UF0 nonchalantly dropped a Grenade Launcher on the ground 585 | -10/Mines | Core integrity fell below 50% 587 | -10/Mines | Core integrity fell below 20% 590 | -10/Mines | Destroyed by YI-UF0 with YI-UF0's Doublenader Last Messages --------------- 00581_ Destroyed Ion Engine. 00582_ The unstable cave ceiling collapses. 00582_ U-05 Engineer destroyed. 00583_ S-10 Pest destroyed. 00584_ The unstable cave ceiling collapses. 00584_ Aluminum Leg destroyed. 00585_ The unstable cave ceiling collapses. 00585_ K-01 Serf collects debris. 00585_ U-05 Engineer lays Concrete. 00586_ The unstable cave ceiling collapses. 00586_ Aluminum Leg destroyed. 00587_ The unstable cave ceiling collapses. 00587_ Destroyed Wheel. 00587_ U-05 Engineer lays Concrete. 00588_ The unstable cave ceiling collapses. 00588_ U-05 Engineer lays Concrete. 00588_ Assault Rifle destroyed. 00588_ Grenade Launcher destroyed. 00589_ U-05 Engineer builds a Wall. 00590_ Destroyed Shock Absorption System. Map ----- +----------------------------------------------------+ | ???????????????????# #??????# ??????????? | | ???????????????????# #???????# ###???????? | | ????????????????????# ########## ###??????? | | ?????????????????????# # #??????? | | ?????????????????????# # [ #####??? | | ?????????????????????## ####### # #??? | | ??????????????????????## #?????# ## # * #??? | | ???????????????????????# #?????# ## # #??? | | ???????????????????????# #???### #### # #??? | | ???????????????????????# #??## #??# ## #??? | | ???????????????????????# #### ##?## ### #??? | | ???????????????????????# ##?###?# #??? | | ???????????????????????# ##### ##????# #??? | | ???????????????????????# #????# #????# #??? | | ???????????????????????# #???## #????# #??? | | ???????????????????????# ##### #???## #??? | | ???????????????????????# ##?## #??? | | ???????????????????????# #### < ### ##??? | | ???????????????????????# =#??# #???? | | ??????????????????????## %##### ##???? | | ????????????????????### ### #????? | | ????????????????????## ## #### #????? | | ????????????????????# ### ##??## ##????? | | ????????????????????# ### #????####?????? | | ????????????????????# #?# #?????????????? | | ?????????????????????# @ ### #?????????????? | | ?????????????????????# ## ##????????????? | | ?????????????????????# # ##???????????? | | ?????????????????????# g ##??????????? | | ?????????????????????# # ####???????? | | ????????????????????? k ## ##??????? | | ???????????????????? # ##### #??????? | | ??????????????????? ## ##???## #?????? | | ?????????????????? ?## # u##????## #?????? | | ????????????????? ???###? ??????#### ##?????? | | ????????????????# ??????? ??????????###??????? | | ????????????????## ???????? ##??????????????????? | | ?????????????????#????????? ##???????????????????? | | ???????????????????????????##????????????????????? | | ?????????????????????????????????????????????????? | | ?????????????????????????????????????????????????? | | ?????????????????????????????????????????????????? | | ?????????????????????????????????????????????????? | | ?????????????????????????????????????????????????? | | ?????????????????????????????????????????????????? | | ?????????????????????????????????????????????????? | | ?????????????????????????????????????????????????? | | ?????????????????????????????????????????????????? | | ?????????????????????????????????????????????????? | | ?????????????????????????????????????????????????? | +----------------------------------------------------+ Best States ------------- Heat Dissipation 25 Energy Generation 10 Energy Capacity 250 Matter Stores 239 Matter Capacity 300 Sight Range 16 Terrain Scan Density 10 Armor Coverage 80 Evasion (%) 55 Item Schematics ----------------- None Robot Schematics ------------------ None Fabricated ------------ Nothing Repaired ---------- Nothing Studied --------- None Alien Tech Used ----------------- None Achievements -------------- None Challenges ------------ None Game ------ Seed SeismicExpertFlamer Manual? 0 Play Time 00:09:58 Cumulative 16.7 hours Start 2026.09.18 @ 19:06:06 End 2026.09.18 @ 19:13:49 Sessions 1 Manual Loads 0 Difficulty Rogue Special Mode None Game No. 19 Rogue 19 Adventurer 0 Explorer 0 Win Type - Total 0 Types 0/0/0/0/0/0/0/0/0/0 Lore% 3 Gallery% 16 Achievement% 13 Wizard Run 0 Options --------- Layout 1 ASCII 0 Keyboard 0 Movement Mouse Keybinds 0 Fullscreen 1 Font 24/Smallcaps Map View 50x35 Zoom Use 0% Tactical HUD 1 Map Filters NONE Filters NONE Steam 1 RUN: 5acdedfb-aa97-46e5-bb50-d66598ef26bc